[Event "German Rapid Championship 2022"]
[Site "Goettingen"]
[Date "2022.09.24"]
[Round "4.8"]
[White "Kopylov, Michael"]
[Black "Arndt, Magnus"]
[Result "1/2-1/2"]
[ECO "E06"]
[WhiteElo "2371"]
[BlackElo "2384"]
[Annotator "TA"]
[PlyCount "63"]
[EventDate "2022.09.24"]
[EventType "swiss"]
[EventCountry "GER"]
[SourceTitle "playchess.com"]
[Source "ChessBase"]
[SourceQuality "1"]
[TimeControl "900+10"]

{[%evp 25,63,-12,-13,-18,12,10,13,12,16,10,19,18,12,13,11,6,8,4,6,4,5,4,4,4,4,5,5,4,12,0,4,6,3,0,0,4,1,0,0,0]} 1. d4 {[%emt 0:00:01]} Nf6 {[%emt 0:00:03]} 2. c4 {[%emt 0:00:02]} e6 {[%emt 0:00:06]} 3. g3 {[%emt 0:00:03]} d5 {[%emt 0:00:21]} 4. Bg2 {[%emt 0:00:02]} Be7 {[%emt 0:00:34]} 5. Nf3 {[%emt 0:00:04]} O-O {[%emt 0:00:02]} 6. O-O {[%emt 0:00:04]} dxc4 {[%emt 0:00:01]} 7. Qa4 {[%emt 0:00:26]} a6 {[%emt 0:00:05]} 8. Qxc4 {[%emt 0:00:01]} b5 {[%emt 0:00:02]} 9. Qc2 {[%emt 0:00:02]} Bb7 {[%emt 0:00:01]} 10. Bf4 {[%emt 0:01:04]} Nc6 {[%emt 0:03:27]} 11. Rd1 {[%emt 0:00:14]} Nb4 {[%emt 0:00:14]} 12. Qc1 {[%emt 0:00:33]} Rc8 {[%emt 0:00:25]} 13. Nc3 {[%emt 0:00:53]} Nbd5 {[%emt 0:02:10] The position is equal.} 14. Ne5 {[%emt 0:02:18] E05: Open Catalan: 5 Nf3 Be7.} Nxc3 {[%emt 0:02:01]} 15. Qxc3 {[%emt 0:00:02]} Bxg2 {[%emt 0:00:03]} 16. Kxg2 {[%emt 0:00:02]} Qd5+ {[%emt 0:00:49]} 17. Qf3 {[%emt 0:00:18]} c5 {[%emt 0:01:05]} 18. dxc5 {[%emt 0:00:31]} Qxf3+ {[%emt 0:00:44]} 19. Kxf3 {[%emt 0:00:03] Strongly threatening c6.} Rxc5 {[%emt 0:00:24][%cal Og7g5]} 20. Rac1 {[%emt 0:01:14] [#] Hoping for Nc6.} Rfc8 {[%emt 0:00:32] [#] Against Nc6} 21. Be3 $146 {[%emt 0:00:39]} ({Predecessor:} 21. Rxc5 Rxc5 22. Rc1 Nd5 23. Rxc5 Bxc5 24. Nd3 Be7 25. Bd2 f6 26. Ba5 f5 27. e4 fxe4+ 28. Kxe4 {½-½ (46) Dragomirescu,A (2288)-Schulz,S (2079) Dresden 2004}) 21... Rxc1 {[%emt 0:00:38]} 22. Rxc1 {[%emt 0:00:02]} Rxc1 {[%emt 0:00:23]} 23. Bxc1 $11 {[%emt 0:00:01][%mdl 4096] Endgame KBN-KBN} Kf8 {[%emt 0:00:03]} 24. Nc6 {[%emt 0:01:40]} Nd5 {[%emt 0:00:37]} 25. Bd2 {[%emt 0:00:39]} Bd6 {[%emt 0:01:01] Inhibits Nb8.} 26. e4 {[%emt 0:02:20]} Ne7 {[%emt 0:00:26]} 27. Nb4 {[%emt 0:00:26]} a5 {[%emt 0:00:04]} 28. Nc2 {[%emt 0:00:44]} Nc6 {[%emt 0:00:02]} 29. Ke2 {[%emt 0:00:36]} Ke7 {[%emt 0:00:09]} 30. f4 {[%emt 0:00:14]} Bc5 {[%emt 0:00:31]} 31. Kd3 {[%emt 0:00:24]} Kd6 {[%emt 0:00:17]} 32. Bc3 {An even fight not without its subleties.  Weighted Error Value: White=0.02 (flawless) /Black=0.02 (flawless)} 1/2-1/2

[Event "German Rapid Championship 2022"]
[Site "Goettingen"]
[Date "2022.09.24"]
[Round "4.9"]
[White "Schenderowitsch, Michael"]
[Black "Heider, Martin"]
[Result "0-1"]
[ECO "A50"]
[WhiteElo "2292"]
[BlackElo "2393"]
[Annotator "TA"]
[PlyCount "130"]
[EventDate "2022.09.24"]
[EventType "swiss"]
[EventCountry "GER"]
[SourceTitle "playchess.com"]
[Source "ChessBase"]
[SourceQuality "1"]
[TimeControl "900+10"]

{[%evp 9,130,20,21,18,21,17,12,-50,-48,-58,-54,-54,-54,-102,-89,-175,-178,-194,-186,-161,-152,-205,-178,-231,-228,-264,-194,-207,-202,-223,-230,-238,-233,-220,-221,-289,-285,-278,-189,-185,-143,-140,-116,-205,-170,-201,-77,-114,-113,-141,-141,-142,-142,-166,-179,-183,-127,-146,-146,-154,-142,-143,-124,-119,-74,-74,-74,-82,-37,-39,-39,-170,-178,-200,-184,-266,-266,-266,-219,-266,-179,-255,-255,-372,-308,-356,-42,-890,-806,-1708,-1688,-1854,-12834,-29958,-29952,-4794,-1653,-12797,-12795,-12795,-10455,-6625,-10270,-4133,-1791,-6215,-1642,-2239,-1452,-29969,-29970,-29970,-29971,-29968,-29973,-29979,-29980,-29986,-29979,-29991,-29992,-29998,-29999]} 1. d4 {[%emt 0:00:02]} Nf6 {[%emt 0:00:07]} 2. c4 {[%emt 0:00:02]} g6 {[%emt 0:00:02]} 3. h4 {[%emt 0:00:02]} Bg7 {[%emt 0:00:16]} 4. Nc3 {[%emt 0:00:01]} Nc6 {[%emt 0:00:13]} 5. d5 {[%emt 0:00:12]} Ne5 {[%emt 0:00:05]} 6. e4 {[%emt 0:00:04] Threatens to win with f4. E60: King's Indian: Unusual lines and Fianchetto Variation without Nc3.} d6 {[%emt 0:00:14]} 7. Be2 {[%emt 0:00:07]} c6 {[%emt 0:00:45] [#]} 8. h5 $146 {[%emt 0:00:42]} (8. Nf3 $11) ({Predecessor:} 8. Nh3 cxd5 9. cxd5 Bd7 10. Qb3 b5 11. Bxb5 O-O 12. Be2 Qa5 13. O-O Rab8 14. Qc2 Bxh3 15. gxh3 {½-½ (34) Rozen,E (2468)-Juhasz,A (2324) Mamaia 2022}) 8... Nxh5 $15 {[%emt 0:00:17]} 9. g4 {[%emt 0:03:12]} Nf6 {[%emt 0:00:45]} 10. g5 {[%emt 0:00:07]} Nh5 {[%emt 0:00:57]} 11. Nf3 {[%emt 0:03:34]} (11. Rh4 $15 {feels stronger.}) 11... Bg4 $1 $17 {[%emt 0:03:31]} 12. dxc6 {[%emt 0:02:56]} (12. Nxe5 $17 Bxe2 13. Nxe2 Bxe5 14. f4) 12... Nxf3+ {[%emt 0:01:41]} (12... bxc6 13. Nxe5 Bxe2 14. Qa4 $15) (12... Nxc6 13. Rh4 Qd7 14. Be3 $17) 13. Bxf3 {[%emt 0:00:01]} Bxf3 {[%emt 0:00:23]} 14. Qxf3 {[%emt 0:00:04]} bxc6 {[%emt 0:00:10]} 15. e5 {[%emt 0:01:12]} (15. Bd2 $17) 15... O-O $19 {[%emt 0:00:31]} (15... Bxe5 16. Qxc6+ Kf8 17. Bd2 $17) 16. exd6 {[%emt 0:00:08]} (16. Qxc6 $142 Bxe5 17. Bd2) 16... Qxd6 {[%emt 0:01:38]} 17. O-O {[%emt 0:00:07]} f6 {[%emt 0:01:49] And now ...fxg5 would win.} 18. Ne4 {[%emt 0:00:32]} Qe6 {[%emt 0:00:29]} 19. Nc5 {[%emt 0:01:16]} Qxc4 {[%emt 0:00:35]} 20. Qb3 {[%emt 0:00:22]} Qxb3 {[%emt 0:00:20]} 21. axb3 {[%emt 0:00:01]} fxg5 {[%emt 0:00:21]} 22. Ne6 {[%emt 0:01:31]} Rf5 {[%emt 0:00:44]} 23. Ra6 {[%emt 0:00:16]} c5 {[%emt 0:01:00]} 24. Bxg5 {[%emt 0:00:32]} Bf6 {[%emt 0:00:51]} 25. Be3 {[%emt 0:00:01]} Rb8 {[%emt 0:00:23]} 26. Rd1 {[%emt 0:01:05]} (26. Rxa7 $17 Bxb2 27. Rxe7) 26... Kf7 {[%emt 0:00:40]} (26... Bxb2 27. Rxa7 Bf6 28. Rc7 $17) (26... Rxb3 $2 27. Rd8+ Kf7 28. Rf8#) 27. Nxc5 {[%emt 0:00:42]} Nf4 {[%emt 0:00:14] Inhibits Ne6.} ({Weaker is} 27... Bxb2 28. Ne6 $17) (27... Bg5 $1 $19 {[%cal Rg5e3] ...Bxe3 is the strong threat.} 28. Rf1 Rb5) 28. Rxa7 Nd5 {[%emt 0:00:16]} ({Stronger than} 28... Bxb2 29. Rdd7 $15) 29. Bc1 {[%emt 0:00:51]} g5 {[%emt 0:00:26]} 30. Ne4 {[%emt 0:00:01] [#] Black must now prevent Nd6+.} Kg6 $1 {[%emt 0:00:07]} 31. Ng3 {[%emt 0:00:00]} Re5 {[%emt 0:00:03]} 32. Ra5 {[%emt 0:00:16]} Nf4 {[%emt 0:00:09]} (32... e6 $19 33. Ra3 h5) 33. Ra4 {[%emt 0:00:19]} Ne2+ {[%emt 0:00:12]} 34. Nxe2 {[%emt 0:00:15]} Rxe2 35. Kf1 Rc2 {[%emt 0:00:06]} 36. Rc4 {[%emt 0:00:03]} Rxc4 {[%emt 0:00:07] Black is more active.} 37. bxc4 $17 {[%emt 0:00:01][%mdl 4096] Endgame KRB-KRB} Rb4 {[%emt 0:00:04]} 38. c5 {[%emt 0:00:08]} Rc4 {[%emt 0:00:07]} 39. Be3 $1 {[%emt 0:00:02]} ({Reject} 39. b4 Rxb4 40. Be3 Rc4 $17) 39... Bxb2 {[%emt 0:00:07]} 40. Rd7 {[%emt 0:00:44] [#] Black converts the advantage convincingly.} (40. Ke2 $15) 40... Bf6 $1 $19 {[%emt 0:00:10]} 41. Ke2 {[%emt 0:00:03]} h5 {[%emt 0:00:07]} 42. Kd3 {[%emt 0:00:23]} (42. f3 $142) 42... Rc3+ {[%emt 0:00:10]} 43. Ke4 {[%emt 0:00:00]} h4 {[%emt 0:00:06]} 44. Rd1 {[%emt 0:00:13]} e6 {[%emt 0:00:12]} 45. Rg1 {[%emt 0:00:17]} (45. f3 {was worth a try.}) 45... Kh5 {[%emt 0:00:15]} 46. Kf3 {[%emt 0:00:00]} (46. f3 {was necessary.}) 46... Rc4 {[%emt 0:00:21]} 47. Rd1 {[%emt 0:00:20]} Be7 $2 {[%emt 0:00:14]} (47... h3 $19 {Hoping for ...g4+.} 48. Ke2 g4) 48. Rg1 $2 {[%emt 0:00:03][%mdl 8192]} (48. Rd7 $15 Bf6 49. Ke2) 48... g4+ {[%emt 0:00:07]} 49. Ke2 {[%emt 0:00:10]} Bxc5 {[%emt 0:00:07]} 50. Kd3 {[%emt 0:00:14]} Bxe3 {[%emt 0:00:05]} 51. Kxe3 {[%emt 0:00:00] KR-KR} Kg5 {[%emt 0:00:12]} 52. Ra1 {[%emt 0:00:01]} Kf5 {[%emt 0:00:25]} (52... h3 $142 53. Kd3 Rc5) 53. Ke2 {[%emt 0:00:03]} Rc2+ {[%emt 0:00:12]} 54. Kf1 {[%emt 0:00:02]} e5 {[%emt 0:00:08]} 55. Kg1 {[%emt 0:00:03]} Kf4 {[%emt 0:00:08]} (55... h3 $142 56. Ra7 Rc1+ 57. Kh2 Rf1) 56. Ra8 {[%emt 0:00:17]} Rc1+ {[%emt 0:00:16]} (56... Rc6 $142 57. Rf8+ Kg5) 57. Kg2 {[%emt 0:00:07]} Rc6 {[%emt 0:00:14]} (57... h3+ $142 58. Kh2 Rf1 59. Rf8+ Ke4) 58. Rf8+ {[%emt 0:00:05]} Kg5 {[%emt 0:00:02] ( -> ...Rf6)} 59. Kg1 {[%emt 0:00:07]} Rf6 {[%emt 0:00:07] Black mates.} 60. Rh8 {[%emt 0:00:21]} e4 {[%emt 0:00:16]} 61. Re8 {[%emt 0:00:09]} Kf4 {[%emt 0:00:03]} 62. Rh8 {[%emt 0:00:03]} h3 {[%emt 0:00:08][%cal Bh4h3,Bh3h2][%mdl 32]} 63. Rg8 {[%emt 0:00:43]} e3 {[%emt 0:00:10]} 64. fxe3+ {[%emt 0:00:15]} Kg3 {[%emt 0:00:01]} 65. Ra8 {[%emt 0:00:15]} h2+ {[%emt 0:00:00] Weighted Error Value: White=0.59/Black=0.44} 0-1

[Event "German Rapid Championship 2022"]
[Site "Goettingen"]
[Date "2022.09.24"]
[Round "4.10"]
[White "Serrer, Christoph"]
[Black "Feuerstack, Aljoscha"]
[Result "0-1"]
[ECO "D12"]
[WhiteElo "2251"]
[BlackElo "2464"]
[Annotator "TA"]
[PlyCount "158"]
[EventDate "2022.09.24"]
[EventType "swiss"]
[EventCountry "GER"]
[SourceTitle "playchess.com"]
[Source "ChessBase"]
[SourceQuality "1"]
[TimeControl "900+10"]

{[%evp 11,158,25,22,36,24,0,0,-7,0,0,0,0,0,-4,-6,-10,-5,-41,-41,-45,-27,-21,-16,-18,-18,-20,-15,-26,-26,-26,-26,-26,-26,-37,-26,-36,-16,-142,-145,-145,-145,-145,-135,-138,-139,-175,-175,-167,-155,-152,0,0,0,-155,-149,-193,-54,-180,-180,-180,-166,-171,-87,-87,0,-170,-102,-114,-114,-118,-140,-118,0,-95,-109,-154,-154,-193,-193,-212,-204,-208,-193,-225,-186,-217,-179,-170,0,-210,-192,-226,-214,-218,-212,-390,-383,-388,-387,-379,-379,-360,-357,-963,-910,-1481,-973,-952,-899,-845,-414,-765,-754,-729,-617,-556,-466,-460,-450,-392,-342,-490,-372,-366,0,-457,-331,-273,-185,-193,-181,-255,-255,-387,-367,-676,-671,-706,-706,-691,-638,-29980,-29981,-29981,-29982,-29986,-29987,-29987,-29988]} 1. d4 {[%emt 0:00:02]} d5 {[%emt 0:00:04]} 2. Nf3 {[%emt 0:00:02]} Nf6 {[%emt 0:00:01]} 3. c4 {[%emt 0:00:01]} c6 {[%emt 0:00:05]} 4. e3 {[%emt 0:00:02]} Bf5 {[%emt 0:00:02]} 5. Nc3 {[%emt 0:00:02]} e6 {[%emt 0:00:01]} 6. Nh4 {[%emt 0:00:14]} Bg6 {[%emt 0:00:03]} 7. Qb3 {[%emt 0:00:04] D12: Slav Defence: 3 Nf3 Nf6 4 e3 Bf5.} Qc7 {[%emt 0:00:13] The main line 7...Qc7 scores better than 7...Qb6.} 8. h3 {[%emt 0:01:55]} Nbd7 {[%emt 0:00:27]} 9. Bd2 {[%emt 0:00:59] The position is equal.} Ne4 {[%emt 0:00:42]} 10. Nxg6 {[%emt 0:00:58]} Nxd2 {[%emt 0:00:03]} 11. Kxd2 {[%emt 0:00:02]} hxg6 {[%emt 0:00:03]} 12. cxd5 {[%emt 0:00:13]} exd5 {[%emt 0:00:04] [#]} 13. Rc1 $146 {[%emt 0:00:16][%cal Oc3d5]} ({Predecessor:} 13. Bd3 Be7 14. Rac1 Qb6 15. Qc2 Nf8 16. Na4 Qa5+ 17. Ke2 Ne6 18. a3 O-O 19. Kf1 {1-0 (51) Koneru,H (2486)-Erenburg,S (2450) Budapest 2002}) 13... Qb6 {[%emt 0:00:49]} 14. Bd3 {[%emt 0:00:17]} Qxb3 {[%emt 0:01:26]} 15. axb3 {[%emt 0:00:03]} Bd6 {[%emt 0:00:02]} 16. h4 {[%emt 0:01:35]} Nf8 {[%emt 0:01:35]} 17. g4 {[%emt 0:02:35]} Ne6 {[%emt 0:00:33]} 18. h5 {[%emt 0:00:18]} gxh5 {[%emt 0:00:13]} 19. gxh5 {[%emt 0:00:11]} Rh6 {[%emt 0:00:45][%cal Bh8h6,Bh6f6,Bf6f5][%mdl 32]} 20. Rcg1 {[%emt 0:00:44]} Ke7 {[%emt 0:00:24]} 21. Bf5 {[%emt 0:01:02]} Rg8 {[%emt 0:00:08]} 22. Rh3 {[%emt 0:02:02]} Rf6 {[%emt 0:03:26]} 23. Rf3 {[%emt 0:02:05]} Rh8 {[%emt 0:02:52]} 24. Ke2 {[%emt 0:01:11] [#]} (24. Bg4 $11) 24... Nf4+ $1 $17 {[%mdl 512]} 25. exf4 {[%emt 0:00:16] aiming for Rg5.} Rxf5 {[%emt 0:00:53]} 26. Rxg7 {[%emt 0:00:21]} Rhxh5 {[%emt 0:00:08]} 27. Rg8 {[%emt 0:00:35]} Kd7 {[%emt 0:02:21]} (27... Bxf4 28. Ra8 $15) (27... Rxf4 28. Rxf4 Bxf4 29. Ra8 $17) 28. Rg5 {[%emt 0:00:25]} Rfxg5 {[%emt 0:00:50]} ({Weaker is} 28... Rhxg5 29. fxg5 Rxg5 30. Rxf7+ Kc8 31. Rh7 $15) 29. fxg5 $19 {[%emt 0:00:02][%mdl 4096] Endgame KRB-KRN} Ke7 {[%emt 0:00:01]} ({Inferior is} 29... Rxg5 30. Rxf7+ Kc8 31. Kd3 $15) 30. Rf5 {[%emt 0:00:08]} Ke6 {[%emt 0:00:01]} 31. Rf6+ {[%emt 0:00:03]} Ke7 {[%emt 0:00:01]} 32. Rf5 {[%emt 0:00:00]} Ke8 {[%emt 0:01:11]} 33. Nd1 {[%emt 0:01:11]} Bf8 {[%emt 0:00:30]} ({Better is} 33... Rh4 $19 34. Kd3 Rf4 35. Rxf4 Bxf4) 34. Ne3 {[%emt 0:00:06] [#]} (34. Re5+ $1 $15 Be7 35. Ne3) 34... Bg7 $1 {[%emt 0:00:06]} 35. Kd3 {[%emt 0:00:00]} Rh4 {[%emt 0:00:10] Against Ng4} 36. Nc2 {[%emt 0:00:34] [#]} Rh3+ {[%emt 0:00:26]} ({Black should try} 36... Rg4 $1 $19 37. Rf3 Rxg5) 37. Ne3 $17 {[%emt 0:00:12]} Rh4 {[%emt 0:00:08]} (37... Ke7 $17 38. Rf4 Ke6) 38. Nc2 $1 $19 {[%emt 0:00:01]} Ke7 {[%emt 0:00:01]} ({Black should play} 38... Rg4 $19 39. Rf3 Rxg5) 39. Rf3 $17 {[%emt 0:00:03]} Rg4 {[%emt 0:00:12]} 40. Re3+ {[%emt 0:00:25]} Kd7 {[%emt 0:00:01]} 41. Rf3 {[%emt 0:00:23] Prevents Rf4.} Ke7 {[%emt 0:00:18]} ({Much less strong is} 41... Rxg5 42. Rxf7+ Ke6 43. Rxb7 $14) 42. Re3+ $1 {[%emt 0:00:15]} Kf8 {[%emt 0:00:01]} 43. Rf3 {[%emt 0:00:05]} Rxg5 {[%emt 0:00:06]} 44. Rf4 {[%emt 0:00:01]} Ke7 {[%emt 0:00:19]} 45. Ne3 {[%emt 0:00:01]} Ke6 {[%emt 0:00:00]} 46. Rh4 {[%emt 0:00:07]} Rg1 {[%emt 0:00:25]} 47. Rf4 {[%emt 0:00:04]} Bh6 {[%emt 0:00:08]} 48. Rf3 {[%emt 0:00:03]} Rg5 {[%emt 0:00:13]} 49. Rh3 {[%emt 0:00:05]} Bg7 {[%emt 0:00:02]} 50. Rh4 $1 {[%emt 0:00:02]} a6 {[%emt 0:00:25]} 51. Rf4 {[%emt 0:00:05]} Rh5 {[%emt 0:00:14]} 52. Rg4 {[%emt 0:00:01]} Bf6 {[%emt 0:00:14]} 53. Rf4 $2 {[%emt 0:00:23]} (53. Rg3) 53... Rh4 $19 {[%emt 0:00:14]} 54. Rxh4 {[%emt 0:00:07]} Bxh4 {[%emt 0:00:01] KB-KN} 55. f3 {[%emt 0:00:33]} Bg5 {[%emt 0:00:09]} 56. Nd1 {[%emt 0:00:32]} Kf5 {[%emt 0:00:01] Hoping for ...Kf4.} 57. Nc3 $2 {[%emt 0:00:02]} (57. Nf2) 57... Kf4 {[%emt 0:00:12]} 58. Na4 {[%emt 0:00:17]} Be7 {[%emt 0:00:20]} 59. Ke2 {[%emt 0:00:05]} Kg3 {[%emt 0:00:10]} 60. Nb6 {[%emt 0:00:19]} Bf6 {[%emt 0:00:09]} (60... a5 $142 61. Nd7 f5) 61. Ke3 {[%emt 0:00:04]} (61. Nc8 $142 Bxd4 62. Nd6 Bxb2 63. Nxb7) 61... Bg5+ {[%emt 0:00:02]} 62. Ke2 {[%emt 0:00:13]} Be7 {[%emt 0:00:07]} 63. Ke3 {[%emt 0:00:02]} Bb4 {[%emt 0:00:17]} 64. Nd7 {[%emt 0:00:03]} Bd6 {[%emt 0:00:14]} 65. Ke2 {[%emt 0:00:16]} Kf4 {[%emt 0:00:10]} 66. Nf6 {[%emt 0:00:11]} (66. Kf2 $142) 66... Kf5 {[%emt 0:00:10]} 67. Ng4 {[%emt 0:00:03]} Kf4 {[%emt 0:00:11]} 68. Nf6 $1 {[%emt 0:00:01]} Bf8 {[%emt 0:00:10]} 69. Nd7 {[%emt 0:00:13]} Be7 {[%emt 0:00:10] Threatens to win with ...f5.} 70. Ne5 {[%emt 0:00:05]} Bf6 {[%emt 0:00:05]} 71. Nd3+ {[%emt 0:00:09]} (71. Nxf7 $142 b6 72. Kd3) 71... Kg3 {[%emt 0:00:06]} 72. Ke3 {[%emt 0:00:01]} (72. Nc5 $142) 72... Bg5+ {[%emt 0:00:02]} 73. f4 $2 {[%emt 0:00:01]} (73. Ke2 Be7 74. Ne5) 73... Bh6 {[%emt 0:00:05]} 74. Nc5 {[%emt 0:00:07]} Bxf4+ {[%emt 0:00:02]} 75. Kd3 {[%emt 0:00:01]} b6 {[%emt 0:00:11]} 76. Nxa6 {[%emt 0:00:02]} Bd6 {[%emt 0:00:02] Prevents Nb4. Black mates.} 77. b4 {[%emt 0:00:10]} f5 {[%emt 0:00:05]} 78. Nc5 {[%emt 0:00:04]} bxc5 {[%emt 0:00:02]} 79. dxc5 {[%emt 0:00:01]} Be5 {[%emt 0:00:02] Weighted Error Value: White=0.28 (precise) /Black=0.31} 0-1

[Event "German Rapid Championship 2022"]
[Site "Goettingen"]
[Date "2022.09.24"]
[Round "4.11"]
[White "Langheinrich, Ferenc"]
[Black "Tschernatsch, Johannes"]
[Result "0-1"]
[ECO "B30"]
[WhiteElo "2366"]
[BlackElo "2294"]
[Annotator "TA"]
[PlyCount "118"]
[EventDate "2022.09.24"]
[EventType "swiss"]
[EventCountry "GER"]
[SourceTitle "playchess.com"]
[Source "ChessBase"]
[SourceQuality "1"]
[TimeControl "900+10"]

{[%evp 14,118,20,0,0,0,0,0,-15,-75,-93,-69,-6,-8,2,0,0,0,0,-8,-16,-5,0,0,51,0,12,13,53,24,27,4,0,0,45,47,52,28,37,35,44,30,49,50,59,0,0,0,2,-198,-159,-408,-408,-408,-408,-392,-389,-378,-286,-286,-286,-370,-370,-408,-408,-408,-408,-408,-408,-408,-408,-408,-408,-625,-408,-408,0,-652,-408,-827,-408,-653,0,-408,-371,-371,-371,-408,-408,-29959,-29960,-6150,-1585,-29965,-29955,-5452,-2580,-29973,-29974,-29976,-29977,-29979,-29980,-29981,-29982,-29982,-29983]} 1. e4 c5 {[%emt 0:00:01]} 2. Nf3 {[%emt 0:00:29]} Nc6 {[%emt 0:00:01]} 3. Nc3 {[%emt 0:00:07]} e5 {[%emt 0:00:20]} 4. Bc4 {[%emt 0:00:05]} Be7 {[%emt 0:00:15]} 5. d3 {[%emt 0:00:12]} d6 {[%emt 0:00:04]} 6. O-O {[%emt 0:00:12]} Nf6 {[%emt 0:00:08]} 7. Ng5 {[%emt 0:00:13]} O-O {[%emt 0:00:07]} 8. f4 {[%emt 0:00:03]} Bg4 {[%emt 0:00:09] B30: Sicilian: 2...Nc6 3 Bb5, lines without ...g6.} 9. Nf3 {[%emt 0:00:20]} Nd4 {[%emt 0:00:30]} 10. fxe5 {[%emt 0:00:53]} dxe5 {[%emt 0:00:07] [#] The position is equal.} 11. Nd5 $146 {[%emt 0:01:27]} (11. Be3 $11) ({Predecessor:} 11. Kh1 Qd6 12. Be3 a6 13. a4 h6 14. Qd2 Nd7 15. Nd5 Nb6 16. Nxb6 Qxb6 17. Nxe5 {1-0 (30) Zozulia,A (2411)-Gil,L (1790) Calvi 2005}) 11... Nxd5 $17 {[%emt 0:01:46]} 12. Bxd5 {[%emt 0:00:03]} Qb6 {[%emt 0:00:46] Black is more active.} (12... Nxf3+ $1 $15 13. gxf3 Bh3) 13. Kh1 $11 {[%emt 0:02:39]} Rad8 {[%emt 0:03:44]} 14. c3 {[%emt 0:00:07]} Bxf3 {[%emt 0:01:03]} 15. gxf3 {[%emt 0:00:09]} Ne6 {[%emt 0:00:03]} 16. f4 {[%emt 0:02:07]} Nxf4 {[%emt 0:00:28]} 17. Bxf4 {[%emt 0:00:11]} exf4 {[%emt 0:00:03]} 18. Rxf4 {[%emt 0:01:30]} Qh6 {[%emt 0:00:49]} (18... Qxb2 $11 19. Rb1 Qxc3) 19. Qg4 {[%emt 0:00:27]} (19. Rf3 $14) 19... Bd6 {[%emt 0:00:45]} 20. Rf2 {[%emt 0:00:07]} Kh8 {[%emt 0:00:53]} 21. Qg2 {[%emt 0:00:01]} Bf4 {[%emt 0:02:10]} 22. Raf1 {[%emt 0:00:31]} (22. Qf3 $5 {[%cal Rf3f4]} g5 23. Bxb7 $14) 22... g5 {[%emt 0:00:07]} 23. Rf3 {[%emt 0:00:13]} Rd6 {[%emt 0:01:00]} 24. Bxb7 {[%emt 0:00:46]} Qg7 {[%emt 0:01:07]} 25. Bd5 {[%emt 0:00:25]} f5 {[%emt 0:00:32] [#]} 26. exf5 $1 {[%emt 0:00:55]} Rxf5 {[%emt 0:00:21]} ({Weaker is} 26... Rxd5 27. Rxf4 Rxd3 28. f6 $16) 27. Be4 {[%emt 0:00:08]} Rff6 {[%emt 0:00:03]} 28. Rh3 {[%emt 0:00:53]} Rh6 {[%emt 0:00:19]} 29. Rff3 {[%emt 0:01:19]} (29. Qg4 $14) 29... g4 {[%emt 0:01:01]} 30. Rxh6 {[%emt 0:00:10]} ({Of course not} 30. Rxf4 gxh3 31. Qxg7+ (31. Qf2 Rhf6 $19) 31... Kxg7 $17) 30... Qxh6 {[%emt 0:00:54]} 31. Rf2 {[%emt 0:00:38] [#]} (31. Rf1 $11) 31... Bxh2 $1 $19 {[%emt 0:00:32][%mdl 64] Remove Defender, Decoy} 32. Qxh2 {[%emt 0:00:17]} (32. Qxg4 $17 Bg3+ 33. Kg1 Bxf2+ 34. Kxf2) 32... g3 $1 {[%emt 0:00:04][%mdl 64] Pin, Double Attack} 33. Qxh6 {[%emt 0:01:24]} Rxh6+ 34. Kg2 {[%emt 0:00:02]} gxf2 {[%emt 0:00:03]} 35. Kxf2 {[%emt 0:00:01][%mdl 4096] Endgame KR-KB} Rh2+ {[%emt 0:00:02]} 36. Bg2 {[%emt 0:00:01]} Kg7 {[%emt 0:00:06]} 37. Kg3 {[%emt 0:00:06]} Rh6 {[%emt 0:00:08]} 38. a3 {[%emt 0:00:02]} a5 {[%emt 0:00:36]} 39. b3 {[%emt 0:00:01]} Rb6 {[%emt 0:00:14]} 40. Bd5 {[%emt 0:00:01]} Rd6 {[%emt 0:00:01]} 41. Bc4 {[%emt 0:00:01]} Kf6 {[%emt 0:00:03] White must now prevent ...Kg5.} 42. Kf4 {[%emt 0:00:01]} h5 {[%emt 0:00:03]} 43. Bb5 {[%emt 0:00:47]} (43. b4 $142 cxb4 44. cxb4 axb4 45. axb4) 43... Rb6 {[%emt 0:00:01]} 44. Bc4 {[%emt 0:00:00]} Rd6 {[%emt 0:00:01]} (44... Rb8 $142 45. Bd5 h4) 45. Bb5 $1 {[%emt 0:00:01]} Rd8 {[%emt 0:00:07]} 46. Bc4 {[%emt 0:00:07]} (46. b4 $142 cxb4 47. cxb4 axb4 48. axb4) 46... Rb8 {[%emt 0:00:06]} (46... h4 $142 47. Kg4 Rh8) 47. Bd5 {[%emt 0:00:04]} (47. b4 $142 cxb4 48. axb4 axb4 49. cxb4) 47... Rb6 {[%emt 0:00:06]} 48. Bc4 $1 {[%emt 0:00:02]} Rc6 {[%emt 0:00:02]} 49. Bd5 {[%emt 0:00:02]} Rc7 {[%emt 0:00:01]} 50. Bc4 {[%emt 0:00:00]} Rg7 {[%emt 0:00:04]} 51. d4 {[%emt 0:00:27]} (51. b4 $19 Rg4+ 52. Kf3) 51... cxd4 {[%emt 0:00:04]} 52. cxd4 {[%emt 0:00:01]} Rg4+ {[%emt 0:00:06]} (52... h4 $142 53. b4 Rg5 54. bxa5 h3) 53. Ke3 {[%emt 0:00:02]} h4 {[%emt 0:00:05][%cal Bh5h4,Bh4h3,Bh3h2][%mdl 32]} 54. Bd5 {[%emt 0:00:57]} h3 {[%emt 0:00:13]} 55. b4 {[%emt 0:00:21]} Rg3+ {[%emt 0:00:08] Black mates.} 56. Kf4 {[%emt 0:00:05]} Rxa3 {[%emt 0:00:07]} 57. bxa5 {[%emt 0:00:02]} Rxa5 {[%emt 0:00:03]} 58. Bf3 {[%emt 0:00:07]} h2 {[%emt 0:00:16]} 59. Bg2 {[%emt 0:00:11]} Ra1 {[%emt 0:00:07] Weighted Error Value: White=0.66/Black=0.53} 0-1